[Event "6th Uppsala Young Champions 2019"]
[Site "Uppsala"]
[Date "2019.10.28"]
[Round "5.2"]
[White "Storme, Isak"]
[Black "Crevatin, Leo"]
[Result "1/2-1/2"]
[ECO "B13"]
[WhiteElo "2244"]
[BlackElo "2221"]
[Annotator "NA"]
[PlyCount "63"]
[EventDate "2019.10.25"]
[EventType "swiss"]
[EventCountry "SWE"]
[SourceTitle "playchess.com"]
[Source "ChessBase"]
[SourceQuality "1"]
[TimeControl "5400+30"]

{[%evp 8,63,11,24,30,11,16,8,31,29,33,32,33,33,39,27,35,46,27,19,19,15,27,0,12,16,19,13,25,-6,36,35,30,9,8,8,10,0,0,0,0,-7,32767,0,-7,0,0,32767,32767,0,0,0,32767,0,12,0,0,0]} 1. e4 {[%emt 0:00:00]} c6 {[%emt 0:00:00]} 2. d4 {[%emt 0:00:00]} d5 {[%emt 0:04:00]} 3. exd5 {[%emt 0:00:39]} cxd5 {[%emt 0:00:04]} 4. Bd3 {[%emt 0:01:45]} Nc6 {[%emt 0:00:13]} 5. c3 {[%emt 0:00:09]} Nf6 {[%emt 0:02:31]} 6. Bf4 {[%emt 0:01:10]} Bg4 {[%emt 0:02:45]} 7. Qb3 {[%emt 0:02:15]} Qc8 {[%emt 0:01:02]} 8. Nd2 {[%emt 0:04:37]} e6 {[%emt 0:01:24]} 9. Ngf3 {[%emt 0:00:36]} Be7 {[%emt 0:00:13]} 10. O-O {[%emt 0:01:43]} O-O {[%emt 0:01:28]} 11. Rfe1 {[%emt 0:13:11]} a6 {[%emt 0:05:35]} 12. Ne5 {[%emt 0:03:34] B13: Caro-Kann: Exchange Variation and Panov-Botvinnik Attack} Nxe5 {[%emt 0:00:42]} 13. Bxe5 {[%emt 0:03:00]} Bh5 {[%emt 0:04:00]} 14. a4 {[%emt 0:01:35]} Nd7 {[%emt 0:03:12]} 15. Bg3 {[%emt 0:00:11]} Bg6 {[%emt 0:01:16]} 16. Bxg6 {[%emt 0:01:11]} hxg6 {[%emt 0:00:11]} 17. Nf3 {[%emt 0:00:54]} Qc6 {[%emt 0:02:15]} 18. a5 {[%emt 0:01:47] [#]} Bd6 $146 {[%emt 0:08:07]} ({Predecessor:} 18... Rfc8 19. Ne5 Nxe5 20. Rxe5 Qb5 21. Qa2 {0-1 (80) Sorbe,S (2358)-Alonso Rosell,A (2521) Figueres 2010}) 19. Bxd6 {[%emt 0:00:22]} Qxd6 {[%emt 0:00:32]} 20. Ne5 {[%emt 0:00:15]} Nxe5 {[%emt 0:00:56]} 21. Rxe5 {[%emt 0:01:37]} Qc7 {[%emt 0:02:27]} 22. h4 {[%emt 0:02:23]} Rab8 {[%emt 0:03:08]} 23. h5 {[%emt 0:00:23]} gxh5 $1 {[%emt 0:00:06]} 24. Rxh5 {[%emt 0:00:32]} g6 {[%emt 0:01:03]} 25. Rh3 {[%emt 0:00:56]} Kg7 {[%emt 0:02:38]} 26. Qc2 {[%emt 0:01:26]} Rh8 {[%emt 0:03:53]} 27. Rxh8 {[%emt 0:00:10]} Rxh8 {[%emt 0:00:05]} 28. g3 {[%emt 0:00:12]} Qc4 {[%emt 0:03:30]} 29. Kg2 {[%emt 0:01:43]} Qb5 {[%emt 0:05:07]} 30. Qd2 {[%emt 0:00:50]} Qb3 {[%emt 0:01:13]} 31. Qf4 {[%emt 0:02:20]} Qxb2 {[%emt 0:01:28]} 32. Qe5+ $11 {[%emt 0:00:10]} 1/2-1/2

[Event "6th Uppsala Young Champions 2019"]
[Site "Uppsala"]
[Date "2019.10.28"]
[Round "5.8"]
[White "Rasti, Arvin"]
[Black "Berglind, Axel"]
[Result "0-1"]
[ECO "A39"]
[WhiteElo "2179"]
[BlackElo "2062"]
[Annotator "NA"]
[PlyCount "54"]
[EventDate "2019.10.25"]
[EventType "swiss"]
[EventCountry "SWE"]
[SourceTitle "playchess.com"]
[Source "ChessBase"]
[SourceQuality "1"]
[TimeControl "5400+30"]

{[%evp 17,54,19,38,42,33,32,32767,32767,32767,-8,0,0,-7,32767,-28,-84,-57,-99,-100,-103,-97,32767,-24,-32,16,-381,-376,-408,-397,32767,32767,32767,32767,32767,32767,-565,32767,32767,-1080]} 1. Nf3 {[%emt 0:00:00]} c5 {[%emt 0:00:00]} 2. c4 {[%emt 0:00:00]} Nc6 {[%emt 0:00:00]} 3. b3 {[%emt 0:00:02]} Nf6 {[%emt 0:00:05]} 4. Bb2 {[%emt 0:00:08]} g6 {[%emt 0:00:07]} 5. g3 {[%emt 0:00:32]} Bg7 {[%emt 0:00:06]} 6. Bg2 {[%emt 0:00:10]} O-O {[%emt 0:00:07]} 7. Nc3 {[%emt 0:01:15]} a6 {[%emt 0:00:27]} 8. O-O {[%emt 0:02:24]} Rb8 {[%emt 0:00:33]} 9. d4 {[%emt 0:04:10]} cxd4 {[%emt 0:02:02]} 10. Nxd4 {[%emt 0:00:08]} Nxd4 {[%emt 0:00:04]} 11. Qxd4 {[%emt 0:00:10]} d6 {[%emt 0:00:30]} 12. Rfd1 {[%emt 0:04:43] A39: Symmetrical English vs ...g6: 4 Bg2 Bg7 5 Nf3 Nf6 6 0-0 0-0 7 d4} Be6 {[%emt 0:01:00]} 13. Rac1 {[%emt 0:10:56]} Qa5 {[%emt 0:01:22]} 14. Qd2 {[%emt 0:04:09]} Rfc8 {[%emt 0:04:28]} 15. a4 $146 {[%emt 0:18:27]} ({Predecessor:} 15. Na4 Qxd2 16. Rxd2 b5 17. cxb5 Rxc1+ 18. Bxc1 axb5 19. Nc3 {0-1 (60) Altounian,L (2454)-Hess,R (2590) Saint Louis 2010}) 15... Qb4 {[%emt 0:01:44]} 16. Qc2 {[%emt 0:02:21] [#]} (16. Ne4 $11 {keeps the balance.} Qxb3 17. Bxf6 Bxf6 18. Nxf6+ exf6 19. a5) 16... b5 $1 {[%emt 0:01:09]} 17. Na2 {[%emt 0:01:12]} Qc5 {[%emt 0:04:03]} 18. Bd4 {[%emt 0:00:25] [#]} Qa3 $1 {[%emt 0:01:04]} 19. Ba7 {[%emt 0:03:07]} bxa4 {[%emt 0:01:50]} 20. Bxb8 {[%emt 0:00:31]} axb3 {[%emt 0:06:25]} 21. Qd3 $2 {[%emt 0:03:20]} (21. Rd3 $1 $11 bxc2 22. Rxa3) 21... Rxb8 {[%emt 0:01:24]} 22. Nc3 {[%emt 0:00:51]} b2 {[%emt 0:00:25]} 23. Rc2 {[%emt 0:00:09]} Bf5 {[%emt 0:03:36]} 24. Qd2 {[%emt 0:02:12]} Bxc2 {[%emt 0:00:41]} 25. Qxc2 {[%emt 0:00:01]} Nd7 {[%emt 0:01:13]} 26. Nd5 {[%emt 0:00:31]} Qb3 {[%emt 0:01:01]} 27. Qb1 {[%emt 0:00:54] [#]} Qxd1+ $19 {[%emt 0:00:08] Remove Defender, Promotion} 0-1

[Event "6th Uppsala Young Champions 2019"]
[Site "Uppsala"]
[Date "2019.10.28"]
[Round "5.9"]
[White "Trost, Edvin"]
[Black "Wernberg, Hugo"]
[Result "1/2-1/2"]
[ECO "C24"]
[WhiteElo "1982"]
[BlackElo "2006"]
[Annotator "NA"]
[PlyCount "67"]
[EventDate "2019.10.25"]
[EventType "swiss"]
[EventCountry "SWE"]
[SourceTitle "playchess.com"]
[Source "ChessBase"]
[SourceQuality "1"]
[TimeControl "5400+30"]

1. e4 {[%emt 0:00:00]} e5 {[%emt 0:01:04]} 2. Bc4 {[%emt 0:03:14]} Nf6 {[%emt 0:00:36]} 3. d3 {[%emt 0:00:28]} c6 {[%emt 0:01:44]} 4. Bb3 {[%emt 0:03:41]} d6 {[%emt 0:04:27]} (4... Be7 5. Nf3 d6 6. Nc3 Nbd7 7. a3 O-O 8. O-O Nc5 9. Ba2 Be6 10. Re1 Bxa2 11. Rxa2 Re8 12. h3 {½-½ (48) Lagarde,M (2591)-Buhmann,R (2589) Berlin 2018}) 5. Nc3 {[%emt 0:01:48]} Be7 {[%emt 0:02:29]} 6. Nge2 {[%emt 0:01:31] C24: Bishop's Opening: 2...Nf6} Be6 {[%emt 0:01:58]} 7. O-O {[%emt 0:02:43]} Nbd7 {[%emt 0:04:50]} 8. Kh1 $146 {[%emt 0:02:29]} ({Predecessor:} 8. Ng3 Nc5 9. f4 Nxb3 10. axb3 exf4 11. Bxf4 O-O 12. Kh1 {½-½ (59) Kalix,W (2052)-Becherer,T Germany 2014}) 8... Nf8 {[%emt 0:03:49]} 9. f4 {[%emt 1:18:36]} exf4 {[%emt 0:00:35]} 10. Nxf4 {[%emt 0:00:00]} Bxb3 {[%emt 0:00:23]} 11. axb3 {[%emt 0:00:00]} Ng6 {[%emt 0:00:40]} 12. d4 {[%emt 0:00:00]} Nxf4 {[%emt 0:05:32]} 13. Bxf4 {[%emt 0:00:00]} O-O {[%emt 0:01:27]} 14. Qe2 {[%emt 0:00:00]} Re8 {[%emt 0:03:18]} 15. Rad1 {[%emt 0:00:00]} d5 {[%emt 0:03:35]} 16. e5 {[%emt 0:00:00]} Bb4 {[%emt 0:01:11]} 17. Bg5 {[%emt 0:00:00] Pin} Bxc3 {[%emt 0:02:45]} (17... Qd7 {might work better.} 18. Bxf6 gxf6 19. Rxf6 Be7) 18. bxc3 {[%emt 0:00:00]} ({Not} 18. Bxf6 gxf6 19. bxc3 Re6 $16) 18... Qd7 {[%emt 0:03:19]} 19. Bxf6 {[%emt 0:00:00]} gxf6 {[%emt 0:00:09]} 20. Rxf6 {[%emt 0:00:00]} Re6 {[%emt 0:03:17]} 21. Rdf1 {[%emt 0:00:00]} (21. Qg4+ $142 Kh8 22. Qf4) 21... Rxf6 {[%emt 0:01:09]} 22. Rxf6 {[%emt 0:00:00]} a5 {[%emt 0:08:25]} 23. h4 {[%emt 0:00:00]} b5 $18 {[%emt 0:05:12]} (23... c5 $142 24. Qh5 Ra6 25. dxc5 Rxf6 26. exf6 Qe6 27. Qg5+ Kf8) 24. e6 {[%emt 0:00:00]} fxe6 {[%emt 0:00:26]} 25. Rxe6 {[%emt 0:00:00]} a4 {[%emt 0:05:52]} 26. bxa4 {[%emt 0:00:00]} bxa4 {[%emt 0:00:18]} 27. Re7 {[%emt 0:00:00]} Qf5 {[%emt 0:02:21]} 28. Re8+ {[%emt 0:00:00]} Rxe8 {[%emt 0:00:25]} 29. Qxe8+ {[%emt 0:00:00]} Kg7 {[%emt 0:01:51]} 30. Qxc6 {[%emt 0:00:00]} Qf1+ {[%emt 0:01:23]} 31. Kh2 {[%emt 0:00:00]} Qf4+ {[%emt 0:00:17]} 32. Kg1 {[%emt 0:00:00]} Qc1+ {[%emt 0:04:00]} 33. Kh2 {[%emt 0:00:00]} Qf4+ {[%emt 0:00:20]} 34. Kg1 {[%emt 0:00:00]} 1/2-1/2

[Event "6th Uppsala Young Champions 2019"]
[Site "Uppsala"]
[Date "2019.10.28"]
[Round "5.10"]
[White "Nguyen, Gabriel"]
[Black "Ostlund, Joar"]
[Result "1-0"]
[ECO "D53"]
[WhiteElo "2071"]
[BlackElo "1955"]
[Annotator "NA RC"]
[PlyCount "103"]
[EventDate "2019.10.25"]
[EventType "swiss"]
[EventCountry "SWE"]
[SourceTitle "playchess.com"]
[Source "ChessBase"]
[SourceQuality "1"]
[TimeControl "5400+30"]

1. d4 {[%emt 0:00:27]} d5 {[%emt 0:00:00]} 2. c4 {[%emt 0:00:30]} e6 {[%emt 0:00:00]} 3. Nc3 {[%emt 0:00:04]} Nf6 {[%emt 0:00:00]} 4. Nf3 {[%emt 0:01:09]} c6 {[%emt 0:00:23]} 5. Bg5 {[%emt 0:00:04]} Be7 {[%emt 0:01:34]} 6. e3 {[%emt 0:00:07]} Nbd7 {[%emt 0:00:17]} 7. Bd3 {[%emt 0:00:19]} dxc4 {[%emt 0:02:03]} 8. Bxc4 {[%emt 0:00:05]} b5 {[%emt 0:00:33]} 9. Bd3 {[%emt 0:00:05]} a6 {[%emt 0:00:33]} 10. a4 {[%emt 0:00:44] D53: Queen's Gambit Declined: 4 Bg5 Be7: Early deviations} Bb7 {[%emt 0:03:34]} 11. Rc1 {[%emt 0:03:18]} Rc8 {[%emt 0:12:11]} (11... b4 $5 {[%cal Rb4c3]} 12. Ne2 c5 $11) 12. Qe2 $146 {[%emt 0:02:10]} ({Predecessor:} 12. O-O Qb6 13. Ne5 Nxe5 14. dxe5 Nd7 15. Bxe7 Kxe7 16. Qg4 h6 17. Qg3 Rcd8 {1-0 (33) Laurusas,T (2419)-Tokranovs,D (2325) Panevezys 2017}) 12... b4 {[%emt 0:04:44]} 13. Bxf6 {[%emt 0:02:47]} Nxf6 {[%emt 0:02:37]} 14. Ne4 {[%emt 0:00:18]} Nxe4 {[%emt 0:04:22]} 15. Bxe4 {[%emt 0:00:14]} Qb6 {[%emt 0:00:44]} (15... Qc7 $11) 16. O-O {[%emt 0:05:43]} c5 {[%emt 0:01:47]} 17. Bd3 {[%emt 0:08:08]} cxd4 {[%emt 0:06:39]} 18. Rxc8+ {[%emt 0:01:45]} Bxc8 {[%emt 0:00:06]} 19. Nxd4 {[%emt 0:00:39]} O-O {[%emt 0:01:55]} 20. h3 {[%emt 0:03:35]} (20. Qc2 $11) 20... Bb7 {[%emt 0:03:15]} 21. Rc1 {[%emt 0:00:05]} Bf6 {[%emt 0:03:39]} 22. Nb3 {[%emt 0:01:31]} Rd8 {[%emt 0:02:33]} 23. Qc2 {[%emt 0:18:35]} g6 {[%emt 0:03:54]} 24. Be2 {[%emt 0:08:19]} Bd5 $15 {[%emt 0:13:12]} 25. Rd1 {[%emt 0:05:01]} Bxb3 {[%emt 0:08:08]} 26. Rxd8+ {[%emt 0:03:35]} Qxd8 {[%emt 0:00:12]} 27. Qxb3 {[%emt 0:00:07]} a5 {[%emt 0:00:58]} 28. Qc2 {[%emt 0:00:25]} Qd5 {[%emt 0:01:28]} 29. b3 {[%emt 0:00:21]} Qe5 {[%emt 0:01:51]} 30. Qc4 {[%emt 0:00:50]} Qb2 {[%emt 0:03:58]} 31. g3 {[%emt 0:01:06]} h5 {[%emt 0:01:19]} 32. Kg2 {[%emt 0:02:33]} Qc3 {[%emt 0:02:56]} 33. g4 {[%emt 0:01:12]} Qxc4 {[%emt 0:01:43]} 34. Bxc4 {[%emt 0:00:28]} hxg4 {[%emt 0:00:39]} 35. hxg4 {[%emt 0:00:32]} Bd8 {[%emt 0:00:41]} 36. f4 {[%emt 0:00:30]} g5 {[%emt 0:01:05]} 37. Kf3 {[%emt 0:00:24]} gxf4 {[%emt 0:01:00]} 38. exf4 {[%emt 0:00:06]} Kg7 {[%emt 0:01:46]} 39. g5 {[%emt 0:00:47]} f6 {[%emt 0:01:40]} 40. Kg4 {[%emt 0:00:38]} fxg5 {[%emt 0:01:13]} 41. fxg5 {[%emt 0:00:05]} e5 {[%emt 0:00:39]} 42. Bd3 {[%emt 0:00:38]} Bc7 {[%emt 0:00:05]} 43. Kf5 {[%emt 0:00:05]} Bd6 {[%emt 0:00:08]} 44. Be4 {[%emt 0:01:13]} Bc7 {[%emt 0:00:07]} 45. Ke6 {[%emt 0:00:07]} Bb8 {[%emt 0:00:06]} 46. Kd7 {[%emt 0:00:42]} Kf7 {[%emt 0:00:06]} 47. Kc6 {[%emt 0:00:30]} Ke8 {[%emt 0:09:27]} 48. Kb6 {[%emt 0:00:41]} Bd6 {[%emt 0:00:33]} 49. Kxa5 {[%emt 0:00:09]} Kd7 {[%emt 0:01:09]} 50. Kb6 {[%emt 0:00:16]} Be7 {[%emt 0:00:41]} 51. g6 {[%emt 0:00:07]} Kc8 {[%emt 0:00:41]} 52. g7 {[%emt 0:00:10]} 1-0

[Event "6th Uppsala Young Champions 2019"]
[Site "Uppsala"]
[Date "2019.10.28"]
[Round "5.11"]
[White "Fjallheim, Leif Reinert"]
[Black "Ostensson, Julia"]
[Result "1-0"]
[ECO "D00"]
[WhiteElo "1985"]
[BlackElo "1483"]
[Annotator "NA RC"]
[PlyCount "59"]
[EventDate "2019.10.25"]
[EventType "swiss"]
[EventCountry "SWE"]
[SourceTitle "playchess.com"]
[Source "ChessBase"]
[SourceQuality "1"]
[TimeControl "5400+30"]

1. d4 {[%emt 1:30:30]} d5 {[%emt 1:30:30]} 2. Bf4 {[%emt 0:00:30]} Nf6 {[%emt 0:00:30]} 3. e3 {[%emt 0:00:30]} c5 {[%emt 0:00:30]} 4. c3 {[%emt 0:00:30]} Nc6 {[%emt 0:00:30]} 5. Nd2 {[%emt 0:00:30]} Bf5 {[%emt 0:00:30]} 6. Ngf3 {[%emt 0:00:30]} e6 {[%emt 0:00:30]} 7. Qb3 {[%emt 0:00:30] D00: 1 d4 d5: Unusual lines} (7. Be2 Bd6 8. dxc5 Bxc5 9. Nd4 Bg6 10. Qa4 O-O 11. Nxc6 bxc6 12. Qxc6 Rc8 13. Qa4 Re8 14. O-O e5 {0-1 (57) Le,Q (2737)-Ding,L (2777) Riadh 2017}) 7... Qd7 {[%emt 0:00:30]} 8. Ne5 {[%emt 0:00:30]} Qc8 {[%emt 0:00:30]} 9. Bb5 {[%emt 0:00:30]} Nd7 {[%emt 0:00:30]} 10. Ndf3 $146 {[%emt 0:00:30]} ({Predecessor:} 10. Nxd7 Qxd7 11. Be2 c4 12. Qd1 Bd6 13. Bxd6 Qxd6 14. b4 O-O {½-½ (32) Ballmann,M (2397)-Buss,R (2322) Switzerland 2018}) 10... f6 {[%emt 0:00:30]} 11. Nxd7 {[%emt 0:00:30]} Qxd7 {[%emt 0:00:30]} 12. c4 {[%emt 0:00:30]} a6 {[%emt 0:00:30]} 13. Bxc6 {[%emt 0:00:30]} bxc6 {[%emt 0:00:30]} 14. Rc1 {[%emt 0:00:30]} cxd4 {[%emt 0:00:30]} 15. exd4 {[%emt 0:00:30]} Bd6 {[%emt 0:00:30]} 16. Bxd6 {[%emt 0:00:30]} Qxd6 {[%emt 0:00:30]} 17. cxd5 {[%emt 0:00:30]} cxd5 {[%emt 0:00:30]} 18. O-O {[%emt 0:00:30]} O-O {[%emt 0:00:30]} 19. Rc5 {[%emt 0:00:30]} Rfb8 {[%emt 0:00:30]} 20. Qc3 {[%emt 0:00:30]} Qb6 $16 {[%emt 0:00:30]} 21. b3 {[%emt 0:00:30]} a5 {[%emt 0:00:30]} 22. a3 {[%emt 0:00:30]} Rb7 {[%emt 0:00:30]} 23. Rc1 {[%emt 0:00:30]} Qxb3 {[%emt 0:00:30]} 24. Rc8+ {[%emt 0:00:30]} Rxc8 {[%emt 0:00:30]} 25. Qxc8+ {[%emt 0:00:30]} Kf7 {[%emt 0:00:30]} 26. Rc7+ {[%emt 0:00:30]} Kg6 {[%emt 0:00:30]} 27. h3 {[%emt 0:00:30]} Rxc7 {[%emt 0:00:30]} 28. Qxc7 {[%emt 0:00:30]} Qxa3 {[%emt 0:00:30]} 29. Qg3+ {[%emt 0:00:30]} Kf7 {[%emt 0:00:30]} 30. Ng5+ {[%emt 0:00:30]} 1-0

[Event "6th Uppsala Young Champions 2019"]
[Site "Uppsala"]
[Date "2019.10.28"]
[Round "5.13"]
[White "Narva, David"]
[Black "Carlsson, Ludvig"]
[Result "1-0"]
[ECO "C02"]
[WhiteElo "1979"]
[BlackElo "2066"]
[Annotator "NA RC"]
[PlyCount "107"]
[EventDate "2019.10.25"]
[EventType "swiss"]
[EventCountry "SWE"]
[SourceTitle "playchess.com"]
[Source "ChessBase"]
[SourceQuality "1"]
[TimeControl "5400+30"]

1. e4 {[%emt 0:00:00]} e6 {[%emt 0:00:00]} 2. Nf3 {[%emt 0:00:43]} d5 {[%emt 0:00:12]} 3. e5 {[%emt 0:00:04]} c5 {[%emt 0:00:42]} 4. c3 {[%emt 0:00:05]} Nc6 {[%emt 0:01:38]} 5. Na3 {[%emt 0:00:46]} Bd7 {[%emt 0:00:14]} 6. Nc2 {[%emt 0:00:08]} Qb6 {[%emt 0:00:25]} 7. d4 {[%emt 0:00:05]} cxd4 {[%emt 0:00:09]} 8. cxd4 {[%emt 0:00:03]} Nb4 {[%emt 0:00:09] C02: French: Advance Variation} 9. Nxb4 {[%emt 0:00:04]} Bxb4+ {[%emt 0:00:09]} 10. Bd2 {[%emt 0:00:02]} Bxd2+ {[%emt 0:00:46]} 11. Qxd2 {[%emt 0:00:05]} Bb5 {[%emt 0:00:24]} 12. Bd3 {[%emt 0:02:14]} Qa6 {[%emt 0:02:42]} 13. Bxb5+ {[%emt 0:01:09]} Qxb5 {[%emt 0:00:08]} 14. a4 {[%emt 0:01:24] [#]} Qa6 $146 {[%emt 0:02:01]} ({Predecessor:} 14... Qb6 15. O-O Ne7 {½-½ (14) Ward,C (2505)-Tkachiev,V (2615) Hastings 1997}) 15. b4 {[%emt 0:01:28]} Ne7 {[%emt 0:00:24]} 16. b5 {[%emt 0:13:36]} Qb6 {[%emt 0:00:09]} 17. Qb4 {[%emt 0:06:08]} Nc6 {[%emt 0:02:19]} 18. Qc3 {[%emt 0:08:17]} Na5 {[%emt 0:02:55]} 19. Nd2 {[%emt 0:00:34]} O-O {[%emt 0:00:27]} 20. Rc1 {[%emt 0:00:34]} a6 {[%emt 0:00:34]} 21. Qc5 {[%emt 0:00:55]} Qxc5 {[%emt 0:00:43]} 22. dxc5 {[%emt 0:00:06]} axb5 {[%emt 0:02:20]} 23. axb5 {[%emt 0:06:44]} Nc4 $1 {[%emt 0:00:18]} 24. Nxc4 {[%emt 0:02:39]} dxc4 {[%emt 0:00:38]} 25. Ke2 {[%emt 0:04:57]} Ra5 {[%emt 0:15:04]} 26. Rxc4 {[%emt 0:07:41]} Rxb5 {[%emt 0:00:06]} 27. Rd1 {[%emt 0:01:56]} Rc8 {[%emt 0:01:02]} 28. Rdc1 {[%emt 0:05:33]} g5 {[%emt 0:03:04]} 29. Ke3 {[%emt 0:02:11]} Kg7 {[%emt 0:01:45]} 30. g4 {[%emt 0:06:11]} Kf8 {[%emt 0:02:35]} 31. R1c2 {[%emt 0:04:01]} Rd8 {[%emt 0:03:21]} 32. Rd4 {[%emt 0:04:43]} Ra8 $15 {[%emt 0:01:07]} 33. Rc3 {[%emt 0:01:43]} Ra1 {[%emt 0:03:09]} 34. Rd8+ {[%emt 0:03:21]} Kg7 {[%emt 0:00:10]} 35. Rb8 {[%emt 0:06:20]} Re1+ {[%emt 0:01:15]} 36. Kd4 {[%emt 0:01:09]} Rb4+ {[%emt 0:01:41]} 37. Rc4 {[%emt 0:02:10]} Re4+ {[%emt 0:00:19]} 38. Kxe4 {[%emt 0:00:12]} Rxc4+ {[%emt 0:00:07]} 39. Kf3 {[%emt 0:01:13]} Rxc5 {[%emt 0:00:07]} 40. Rxb7 {[%emt 0:00:04]} Rxe5 {[%emt 0:00:07]} 41. Kg3 {[%emt 0:00:08]} Re2 {[%emt 0:03:55]} 42. h3 {[%emt 0:00:26]} Kg6 {[%emt 0:00:10]} 43. Rb8 {[%emt 0:00:14]} h5 {[%emt 0:01:42]} 44. Rg8+ {[%emt 0:01:12]} Kf6 {[%emt 0:01:12]} 45. gxh5 {[%emt 0:02:16]} Re4 {[%emt 0:00:06]} 46. h6 {[%emt 0:00:14]} Rh4 {[%emt 0:00:04]} 47. f4 {[%emt 0:00:12]} Rh5 {[%emt 0:01:59]} 48. fxg5+ {[%emt 0:01:03]} Kf5 {[%emt 0:00:14]} 49. h4 {[%emt 0:00:17]} e5 {[%emt 0:00:27]} 50. Rg7 {[%emt 0:00:34]} e4 {[%emt 0:01:37]} 51. Rxf7+ {[%emt 0:00:08]} Ke6 {[%emt 0:00:10]} 52. Rf6+ {[%emt 0:00:22]} Ke7 {[%emt 0:00:06]} 53. Kg4 {[%emt 0:00:16]} e3 {[%emt 0:00:02]} 54. Rf3 {[%emt 0:00:18]} 1-0

[Event "6th Uppsala Young Champions 2019"]
[Site "Uppsala"]
[Date "2019.10.28"]
[Round "5.14"]
[White "Mitra, Akash"]
[Black "Soderstrom, Adrian"]
[Result "0-1"]
[ECO "C77"]
[WhiteElo "1936"]
[BlackElo "1960"]
[Annotator "NA RC"]
[PlyCount "98"]
[EventDate "2019.10.25"]
[EventType "swiss"]
[EventCountry "SWE"]
[SourceTitle "playchess.com"]
[Source "ChessBase"]
[SourceQuality "1"]
[TimeControl "5400+30"]

1. e4 {[%emt 1:30:30]} e5 {[%emt 1:30:30]} 2. Nf3 {[%emt 0:00:30]} Nc6 {[%emt 0:00:30]} 3. Bb5 {[%emt 0:00:30]} a6 {[%emt 0:00:30]} 4. Ba4 {[%emt 0:00:30]} Nf6 {[%emt 0:00:30]} 5. d3 {[%emt 0:00:30]} d6 {[%emt 0:00:30]} 6. c3 {[%emt 0:00:30]} Be7 {[%emt 0:00:30]} 7. Nbd2 {[%emt 0:00:30]} O-O {[%emt 0:00:30]} 8. h3 {[%emt 0:00:30] C77: Ruy Lopez: 3...a6 4 Ba4 Nf6, unusual lines} (8. O-O b5 9. Bb3 Na5 10. Bc2 c5 11. Re1 Nc6 12. Nf1 Re8 13. h3 h6 14. Ng3 Be6 15. d4 exd4 16. cxd4 cxd4 17. Nxd4 Nxd4 18. Qxd4 Rc8 19. Bb3 d5 20. exd5 Nxd5 21. Ne4 Qd7 22. Bd2 Qb7 {0-1 (67) Predke,A (2622)-Matlakov,M (2700) St Petersburg 2018}) 8... Nd7 {[%emt 0:00:30]} 9. g4 {[%emt 0:00:30]} (9. O-O $14) 9... b5 $146 {[%emt 0:00:30]} ({Predecessor:} 9... Nc5 10. Bc2 Ne6 11. Nf1 d5 12. Qe2 Re8 13. Ng3 g6 {0-1 (41) Albin,A-Gunsberg,I Monte Carlo 1902}) 10. Bc2 {[%emt 0:00:30]} Re8 {[%emt 0:00:30]} 11. Nf1 {[%emt 0:00:30]} Nf8 {[%emt 0:00:30]} 12. Ng3 {[%emt 0:00:30]} g6 {[%emt 0:00:30]} 13. a4 {[%emt 0:00:30]} Rb8 {[%emt 0:00:30]} 14. Qd2 {[%emt 0:00:30]} (14. axb5 $11 axb5 15. Bb3) 14... Ne6 {[%emt 0:00:30]} (14... b4 $17) 15. axb5 {[%emt 0:00:30]} axb5 {[%emt 0:00:30]} 16. Bb3 {[%emt 0:00:30]} b4 {[%emt 0:00:30]} 17. Bxe6 {[%emt 0:00:30]} Bxe6 {[%emt 0:00:30]} 18. Nf5 {[%emt 0:00:30]} Bf8 {[%emt 0:00:30]} 19. Nh6+ {[%emt 0:00:30] [#]} Kh8 $1 {[%emt 0:00:30]} 20. g5 {[%emt 0:00:30]} bxc3 {[%emt 0:00:30]} 21. Qxc3 {[%emt 0:00:30]} (21. bxc3 $17 {was the only chance.} f5 22. gxf6) 21... Qd7 {[%emt 0:00:30]} 22. Be3 {[%emt 0:00:30]} Rb3 {[%emt 0:00:30]} 23. Qd2 {[%emt 0:00:30]} d5 {[%emt 0:00:30]} 24. Qd1 {[%emt 0:00:30]} dxe4 $19 {[%emt 0:00:30]} (24... d4 $142 25. Bc1 Nb4 26. Nxe5 Qb5 {[%mdl 64] Remove Defender}) 25. dxe4 {[%emt 0:00:30]} Rd3 {[%emt 0:00:30]} 26. Qe2 {[%emt 0:00:30]} Bb4+ {[%emt 0:00:30]} 27. Kf1 {[%emt 0:00:30]} Bc4 {[%emt 0:00:30]} 28. Kg2 {[%emt 0:00:30]} Rd8 {[%emt 0:00:30]} 29. Rac1 {[%emt 0:00:30]} Qe6 {[%emt 0:00:30]} 30. Qc2 {[%emt 0:00:30]} Na5 {[%emt 0:00:30]} 31. Rhd1 {[%emt 0:00:30]} c5 {[%emt 0:00:30]} 32. b3 {[%emt 0:00:30]} Ba6 {[%emt 0:00:30]} 33. Nxe5 {[%emt 0:00:30]} Kg7 {[%emt 0:00:30]} 34. Nxd3 {[%emt 0:00:30]} Qxe4+ {[%emt 0:00:30]} 35. f3 {[%emt 0:00:30]} Qxe3 {[%emt 0:00:30]} 36. Qb2+ {[%emt 0:00:30]} Rd4 {[%emt 0:00:30]} 37. Nxb4 {[%emt 0:00:30]} Bb7 38. Qf2 {[%emt 0:00:30]} Qxg5+ {[%emt 0:01:00]} 39. Qg3 {[%emt 0:00:30]} Rd2+ {[%emt 0:00:30]} 40. Rxd2 {[%emt 0:00:30]} Qxd2+ {[%emt 0:00:30]} 41. Qf2 {[%emt 0:00:30]} Qxc1 {[%emt 0:00:30]} 42. Nf5+ {[%emt 0:00:30]} gxf5 {[%emt 0:00:30]} 43. Qg3+ {[%emt 0:00:30]} Kh6 {[%emt 0:00:30]} 44. Qd6+ {[%emt 0:00:30]} Kh5 {[%emt 0:00:30]} 45. Nd3 {[%emt 0:00:30]} Qd2+ {[%emt 0:00:30]} 46. Kg3 {[%emt 0:00:30]} Qg5+ {[%emt 0:00:30]} 47. Kh2 {[%emt 0:00:30]} Bxf3 {[%emt 0:00:30]} 48. Nf4+ {[%emt 0:00:30]} Kh4 {[%emt 0:00:30]} 49. Qe5 {[%emt 0:00:30]} Qg3# {[%emt 0:00:30]} 0-1